Cogmind - Beta 14 @@@ ROGUE MODE // 2025.01.03 @ 18:51:45 // Winter2022/Polymind Player: Demo Result: Destroyed by L-41 Fighter with Axe Performance ------------- Evolutions (3) 1500 Regions Visited (7) 1400 Robots Destroyed (18) 90 Value Destroyed (428) 428 Prototype IDs (0) 0 Alien Tech Used (0) 0 Bonus (2920) 2920 TOTAL SCORE: 6198 Bonus ------- Polymind Skill 2520 Pacifist 200 Entered Garrisons 200 Cogmind --------- Core Integrity 0/700 Matter 165/200 Energy 50/50 System Corruption 0% Temperature Cool (0) Movement Walking (120) Location -7/Garrison Parts ------- > --- POWER (1) -------- (None) > --- PROPULSION (2) --- Carbon-fiber Leg Carbon-fiber Leg > --- UTILITY (1) ------ Targeting Computer > --- WEAPON (2) ------- Assault Rifle Gauss Rifle > --- INVENTORY (1) ---- (None) Peak State ------------ > --- POWER ------------ Light Deuterium Engine > --- PROPULSION ------- Wheel Wheel > --- UTILITY ---------- Machine Analyzer Improved Recalibrator > --- WEAPON ----------- (None) > --- INVENTORY -------- Backup Power III Backup Power III Backup Propulsion III Backup Propulsion III Backup Propulsion III Backup Propulsion III Backup Plating III Backup Plating III Backup Laser III Backup Laser III Backup Laser III Backup Laser III [Rating: 17] Favorites ----------- Power Improved Ion Engine Engine Improved Ion Engine Power Core Light Nuclear Core Propulsion Light Treads Treads Light Treads Leg Aluminum Leg Wheel Wheel Flight Unit VTOL Module Utility Heat Sink Device Heat Sink Processor Targeting Computer Protection Light Armor Plating Weapon Beam Rifle Energy Gun Beam Rifle Ballistic Gun Heavy Assault Rifle Special Weapon Mining Laser Build | -11 -10 -9 -8 -7 -7 -7 -7 ------- Run | Yrd Mat Mat Mat Fac Was Fac Gar Slots Evolved . | . . . . . . . . Power . | . . . . . . . . Propulsion . | . . . . . . . . Utility . | . . . . . . . . Weapon . | . . . . . . . . Parts Attached . | . . . . . . . . Power . | . . . . . . . . Engine . | . . . . . . . . Core . | . . . . . . . . Reactor . | . . . . . . . . Propulsion . | . . . . . . . . Treads . | . . . . . . . . Leg . | . . . . . . . . Wheel . | . . . . . . . . Hover . | . . . . . . . . Flight . | . . . . . . . . Utility . | . . . . . . . . Device . | . . . . . . . . Storage . | . . . . . . . . Processor . | . . . . . . . . Hackware . | . . . . . . . . Protection . | . . . . . . . . Artifact . | . . . . . . . . Weapon . | . . . . . . . . Energy Gun . | . . . . . . . . Energy Cannon . | . . . . . . . . Ballistic Gun . | . . . . . . . . Ballistic Cannon . | . . . . . . . . Launcher . | . . . . . . . . Special Weapon . | . . . . . . . . Impact Weapon . | . . . . . . . . Slashing Weapon . | . . . . . . . . Piercing Weapon . | . . . . . . . . Special Melee Weapon . | . . . . . . . . Unidentified Prototypes . | . . . . . . . . Parts Lost 22 | . 6 5 3 8 . . . Power 4 | . 1 1 1 1 . . . Propulsion 7 | . 2 2 1 2 . . . Utility 6 | . 2 1 . 3 . . . Weapon 5 | . 1 1 1 2 . . . Highest Loss Streak 8 | . 6 5 3 8 . . . To Critical Strikes . | . . . . . . . . Average Slot Usage (%) 85 | . 87 86 90 84 100 34 100 Engine 7 | . 11 . 9 7 . 1 . Core 5 | . 3 17 2 6 25 6 16 Treads 13 | . . . 19 14 . . . Leg 8 | . 7 33 5 . . 1 33 Wheel 2 | . 25 . . . . 3 . Flight 2 | . . . . 12 50 10 . Device 18 | . 25 19 22 15 . 1 . Protection 6 | . . . 9 7 . . . Energy Gun 9 | . 3 16 12 7 . . . Ballistic Gun 8 | . . . 9 12 25 6 33 Peak Build Rating 17 | 8 10 10 11 11 9 17 15 Average Rating 9 | 3 7 8 9 9 9 4 14 On Entrance 7 | . 8 10 . 11 9 9 15 Naked Turns 307 | . 1 7 141 4 . 154 . Heaviest Build 18 | 6 9 9 18 18 8 11 11 Greatest Support 40 | 20 20 20 40 40 8 30 30 Greatest Overweight (x) . | . . . . . . . . Average Overweight (x) . | . . . . . . . . Largest Inventory Capacity 12 | . 1 1 1 1 . 12 1 Average Capacity . | . . . . . . 1 1 Most Carried 12 | . . 1 . . . 12 . Average Carried . | . . . . . . 1 . Final Capacity 1 | . 1 . 1 . . 1 1 Final Carried . | . . . . . . . . Class Distribution -------------------- 52% | Sentry 19% | Grunt 12% | Cogmind 5% | Swarmer 5% | Tunneler 3% | Hunter Dominant Class ---------------- Tunneler | -10/Materials Grunt | -9/Materials Sentry | -8/Materials Sentry | -7/Factory Swarmer | -7/Waste Cogmind | -7/Factory Hunter | -7/Garrison Resources | -11 -10 -9 -8 -7 -7 -7 -7 ----------- Run | Yrd Mat Mat Mat Fac Was Fac Gar Matter Collected 69 | . . . 69 . . . . Remotely . | . . . . . . . . Salvage Created 423 | . . 98 325 . . . . Parts 32 | . . 11 19 . . 2 . Haulers Intercepted . | . . . . . . . . Recyclers Shooed 1 | . . . 1 . . . . Parts Field Recycled . | . . . . . . . . Retrieved Matter . | . . . . . . . . Parts Self-Destructed . | . . . . . . . . Prevented . | . . . . . . . . Kills | -11 -10 -9 -8 -7 -7 -7 -7 ------- Run | Yrd Mat Mat Mat Fac Was Fac Gar Combat Hostiles Destroyed 18 | . . 8 9 . . 1 . Melee 1 | . . . . . . 1 . Guns 17 | . . 8 9 . . . . Classes Destroyed 4 | . . 2 2 . . . . Swarmer 11 | . . 6 4 . . 1 . Grunt 5 | . . 2 3 . . . . Duelist 1 | . . . 1 . . . . Sentry 1 | . . . 1 . . . . Best Kill Streak 3 | . . 3 3 . . 1 . Combat Bots Only 3 | . . 3 3 . . 1 . Max Kills in Single Turn 1 | . . 1 1 . . 1 . Gunslinging . | . . . . . . . . Exploded . | . . . . . . . . Melee 1 | . . . . . . 1 . Uniques/NPCs Destroyed . | . . . . . . . . Combat | -11 -10 -9 -8 -7 -7 -7 -7 -------- Run | Yrd Mat Mat Mat Fac Was Fac Gar Hostile Shots Fired 329 | . 39 73 69 83 1 38 26 Missed 100 | . 11 19 15 23 1 15 16 Damage Taken 3209 | . 433 552 997 665 . 392 170 Core 1455 | . 200 214 329 269 . 356 87 Absorbed by Shields . | . . . . . . . . Ignored by Resistances 6 | . . . . . . . 6 Core Remaining (%) 51 | 100 20 46 40 . . . . Volleys Fired 103 | . . 42 40 4 15 . 2 Largest 2 | . . 1 2 2 1 . 2 Hottest 79 | . . 65 79 79 23 . 48 Shots Fired 121 | . . 42 55 5 15 . 4 Gun 121 | . . 42 55 5 15 . 4 Cannon . | . . . . . . . . Launcher . | . . . . . . . . Special . | . . . . . . . . Kinetic 35 | . . . 15 1 15 . 4 Thermal 86 | . . 42 40 4 . . . Explosive . | . . . . . . . . Electromagnetic . | . . . . . . . . Robot Hit Streak 12 | . . 10 12 6 12 . 4 Robot Miss Streak 5 | . . 2 4 . 5 . . Penetration Max . | . . . . . . . . Secondary Targets 2 | . . . 2 . . . . Max Gunslinging Chain 1 | . . . 1 . . . . Shots Hit Robots 85 | . . 29 38 5 9 . 4 Core Hits 35 | . 3 10 16 3 . 2 1 Critical Kills . | . . . . . . . . Critical Parts Destroyed . | . . . . . . . . Critical Strikes 4 | . . 1 3 . . . . Burn 4 | . . 1 3 . . . . Melee Attacks . | . . . . . . . . Impact . | . . . . . . . . Slashing . | . . . . . . . . Piercing . | . . . . . . . . Sneak Attacks . | . . . . . . . . Combat Hostiles . | . . . . . . . . Follow-up Attacks . | . . . . . . . . Damage Inflicted 1458 | . 89 449 580 74 187 18 61 Guns 1339 | . . 442 577 72 187 . 61 Cannons . | . . . . . . . . Explosions . | . . . . . . . . Melee . | . . . . . . . . Ramming 119 | . 89 7 3 2 . 18 . Kinetic 395 | . . . 134 13 187 . 61 Thermal 944 | . . 442 443 59 . . . Explosive . | . . . . . . . . Electromagnetic . | . . . . . . . . Impact . | . . . . . . . . Slashing . | . . . . . . . . Piercing . | . . . . . . . . Highest Corruption 2 | . 2 1 . . . . . Average Corruption 1 | . 1 1 . . . . . Corruption Purged . | . . . . . . . . Corruption Blocked . | . . . . . . . . Overload Shots . | . . . . . . . . Overflow Damage . | . . . . . . . . Projectiles . | . . . . . . . . Explosions . | . . . . . . . . Melee . | . . . . . . . . Knockbacks . | . . . . . . . . Impact . | . . . . . . . . Kinetic . | . . . . . . . . Secondary . | . . . . . . . . Self-Inflicted Damage 45 | . 34 2 . 1 . 8 . Shots . | . . . . . . . . Rammed 50 | . 35 3 1 2 . 9 . Targets Rammed 53 | . 35 3 4 2 . 9 . Kicked 3 | . . . 3 . . . . Crushed . | . . . . . . . . Highest Temperature 68 | . 11 23 68 36 20 11 . Average Temperature 20 | . 4 8 38 14 10 11 . Received Heat Transfer 849 | . 210 132 243 75 . 162 27 Siege Activations . | . . . . . . . . Robots Corrupted . | . . . . . . . . Combat Hostiles . | . . . . . . . . Parts Fried . | . . . . . . . . Impact Corruptions . | . . . . . . . . Robots Melted . | . . . . . . . . Combat Hostiles . | . . . . . . . . Parts Melted 6 | . . 4 2 . . . . Heat Transferred 2627 | . . 1147 1332 148 . . . Parts Sabotaged . | . . . . . . . . Parts Stolen . | . . . . . . . . Parts Stripped . | . . . . . . . . Power Chain Reactions . | . . . . . . . . Alert | -11 -10 -9 -8 -7 -7 -7 -7 ------- Run | Yrd Mat Mat Mat Fac Was Fac Gar Peak Influence 300 | . 75 260 300 30 10 74 144 Initial 94 | . . 3 94 . 10 . 54 Average 68 | . 25 124 76 4 4 32 75 Maximum Alert Level 1 | . . 1 1 . . . . Low Security (%) 93 | 100 100 72 93 100 100 100 100 Level 1 6 | . . 27 6 . . . . Level 2 . | . . . . . . . . Level 3 . | . . . . . . . . Level 4 . | . . . . . . . . Level 5 . | . . . . . . . . High Security . | . . . . . . . . Max Security . | . . . . . . . . Squads Dispatched 5 | . . 3 1 . . 1 . Investigation 3 | . . 2 1 . . . . Extermination . | . . . . . . . . Reinforcement 2 | . . 1 . . . 1 . Assault . | . . . . . . . . Garrison . | . . . . . . . . Intercept . | . . . . . . . . Searches Triggered . | . . . . . . . . Construction Impeded . | . . . . . . . . Haulers Reinforced . | . . . . . . . . Active Scanning Responses . | . . . . . . . . Cargo Convoy Interrupts . | . . . . . . . . Stealth | -11 -10 -9 -8 -7 -7 -7 -7 --------- Run | Yrd Mat Mat Mat Fac Was Fac Gar Distress Signals 6 | . 1 3 2 . . . . Communications Jammed . | . . . . . . . . Distress Signals . | . . . . . . . . Times Spotted 74 | . 3 17 15 9 5 16 9 Peak Tracking Total 10 | . 3 7 6 5 5 7 10 Tactical Retreats 6 | . . 1 1 1 . 2 1 Traps | -11 -10 -9 -8 -7 -7 -7 -7 ------- Run | Yrd Mat Mat Mat Fac Was Fac Gar Traps Triggered 4 | . . 1 2 1 . . . Indirectly . | . . . . . . . . Trap Hack Attempts . | . . . . . . . . Triggered . | . . . . . . . . Disarmed . | . . . . . . . . Reprogrammed . | . . . . . . . . Reused . | . . . . . . . . Traps Extracted . | . . . . . . . . Installed . | . . . . . . . . Triggered . | . . . . . . . . Machines | -11 -10 -9 -8 -7 -7 -7 -7 ---------- Run | Yrd Mat Mat Mat Fac Was Fac Gar Machines Disabled . | . . . . . . . . Max in Single Turn . | . . . . . . . . Machines Repaired . | . . . . . . . . Machines Dismantled . | . . . . . . . . Machines Sabotaged . | . . . . . . . . Overloaded Fab Kills . | . . . . . . . . Hacking | -11 -10 -9 -8 -7 -7 -7 -7 --------- Run | Yrd Mat Mat Mat Fac Was Fac Gar Machines Accessed 4 | . . 1 1 . . 2 . Terminals 2 | . . 1 . . . 1 . Fabricators . | . . . . . . . . Repair Stations . | . . . . . . . . Recycling Units 1 | . . . 1 . . . . Scanalyzers . | . . . . . . . . Garrison Access 1 | . . . . . . 1 . Total Hacks 8 | . . 4 1 . . 3 . Successful 5 | . . 1 1 . . 3 . Failed 3 | . . 3 . . . . . Catastrophic . | . . . . . . . . Database Lockouts . | . . . . . . . . Manual 5 | . . 4 1 . . . . Terminals 6 | . . 4 . . . 2 . Fabricators . | . . . . . . . . Repair Stations . | . . . . . . . . Recycling Units 1 | . . . 1 . . . . Scanalyzers . | . . . . . . . . Garrison Access 1 | . . . . . . 1 . Terminal Hacks 2 | . . . . . . 2 . Unreport Threat 1 | . . . . . . 1 . Locate Traps 1 | . . . . . . 1 . Fabricator Hacks . | . . . . . . . . Repair Station Hacks . | . . . . . . . . Recycling Unit Hacks . | . . . . . . . . Scanalyzer . | . . . . . . . . Garrison Access Hacks 1 | . . . . . . 1 . Unlock Access 1 | . . . . . . 1 . Unauthorized Hacks 2 | . . 1 1 . . . . Terminals 1 | . . 1 . . . . . Assimilate 1 | . . 1 . . . . . Fabricators . | . . . . . . . . Repair Stations . | . . . . . . . . Recycling Units 1 | . . . 1 . . . . Tunnel 1 | . . . 1 . . . . Scanalyzers . | . . . . . . . . Garrison Access . | . . . . . . . . Data Cores Recovered . | . . . . . . . . Used . | . . . . . . . . Hacking Detections 2 | . . 1 . . . 1 . Full Trace Events 1 | . . 1 . . . . . Feedback Events 1 | . . 1 . . . . . Corruption 1 | . . 1 . . . . . Feedback Blocked . | . . . . . . . . Robot Schematics Acquired . | . . . . . . . . Robots Built . | . . . . . . . . Authchips . | . . . . . . . . Time . | . . . . . . . . Total Robot Build Rating . | . . . . . . . . Part Schematics Acquired . | . . . . . . . . Parts Built . | . . . . . . . . Authchips . | . . . . . . . . Time . | . . . . . . . . Total Part Build Rating . | . . . . . . . . Parts Repaired . | . . . . . . . . Time . | . . . . . . . . Parts Recycled . | . . . . . . . . Recycled Matter . | . . . . . . . . Retrieved Matter . | . . . . . . . . Retrieved Components . | . . . . . . . . Parts Scanalyzed . | . . . . . . . . Part Schematics Acquired . | . . . . . . . . Parts Damaged . | . . . . . . . . Bothacking | -11 -10 -9 -8 -7 -7 -7 -7 ------------ Run | Yrd Mat Mat Mat Fac Was Fac Gar Used RIF Installer . | . . . . . . . . Robots Hacked 6 | . 1 . 2 1 . 2 . Non-combat 1 | . . . . . . 1 . Combat 5 | . 1 . 2 1 . 1 . Robot Hacks Applied 10 | . 1 . 4 2 . 3 . find_station 1 | . . . . . . 1 . find_shortcuts 5 | . 1 . 2 1 . 1 . find_garrison 4 | . . . 2 1 . 1 . Relay Couplers Released . | . . . . . . . . Fabnet Peak Effective % . | . . . . . . . . Robots Rewired . | . . . . . . . . Allies Hacked . | . . . . . . . . Hacks Repelled . | . . . . . . . . Allies | -11 -10 -9 -8 -7 -7 -7 -7 -------- Run | Yrd Mat Mat Mat Fac Was Fac Gar Total Allies 1 | . . . . . 1 . . Largest Group 1 | . . . . . 1 . . Highest-Rated Group 31 | . . . . . 31 . . Highest-Rated Ally 31 | . . . . . 31 . . Total Orders . | . . . . . . . . Ally Attacks 8 | . . . . . 8 . . Total Damage 125 | . . . . . 125 . . Kills . | . . . . . . . . Allies Corrupted . | . . . . . . . . Allies Melted . | . . . . . . . . Intel | -11 -10 -9 -8 -7 -7 -7 -7 ------- Run | Yrd Mat Mat Mat Fac Was Fac Gar Robot Analysis Total 6 | 1 1 . 1 1 . 2 . Derelict Logs Recovered . | . . . . . . . . Drone Launches . | . . . . . . . . Drone Recoveries . | . . . . . . . . Exploration | -11 -10 -9 -8 -7 -7 -7 -7 ------------- Run | Yrd Mat Mat Mat Fac Was Fac Gar Turns Passed 2428 | 16 159 224 1563 85 67 232 82 Spaces Moved 1233 | 27 132 118 217 113 115 449 62 Core 435 | 20 4 54 62 4 . 291 . Treads 95 | . . . 68 27 . . . Legs 251 | . 28 64 87 . . 10 62 Wheels 118 | 7 100 . . . . 11 . Hover . | . . . . . . . . Flight 334 | . . . . 82 115 137 . Fastest Speed 32 | 50 50 50 50 32 32 32 120 Average Speed 70 | 57 87 87 112 63 32 46 120 Slowest Speed 160 | 80 120 120 160 160 32 120 120 Overloaded Moves . | . . . . . . . . Propulsion Burnouts . | . . . . . . . . Robots Hopped 11 | . . . . 9 2 . . Cave-ins Triggered . | . . . . . . . . Exploration Rate (%) 23 | 2 37 23 19 7 69 14 14 Regions Visited 7 Branch Regions . Pre-discovered Areas 1 | . . . 1 . . . . Known Exits Taken 1 | . . . . . . 1 . Unknown Exits Taken 4 | 1 1 1 1 . . . . Scrap Searched . | . . . . . . . . Spaces Dug . | . . . . . . . . Terrain Destroyed . | . . . . . . . . Melee . | . . . . . . . . Projectile . | . . . . . . . . AOE . | . . . . . . . . Terrain Rammed . | . . . . . . . . Walls Destroyed . | . . . . . . . . Machines Disabled . | . . . . . . . . Actions | -11 -10 -9 -8 -7 -7 -7 -7 --------- Run | Yrd Mat Mat Mat Fac Was Fac Gar Total 2654 | 27 175 195 1480 111 130 470 66 Wait 1273 | 1 5 32 1220 . 3 10 2 Move 1209 | 26 131 117 216 97 111 449 62 Hop 8 | . . . . 7 1 . . Pick Up 1 | . . 1 . . . . . Fast Attach . | . . . . . . . . Attach . | . . . . . . . . Detach . | . . . . . . . . Swap . | . . . . . . . . Drop . | . . . . . . . . Fire 103 | . . 42 40 4 15 . 2 Melee . | . . . . . . . . Ram 50 | . 35 3 1 2 . 9 . Kick 3 | . . . 3 . . . . Crush . | . . . . . . . . Escape Stasis . | . . . . . . . . Rewire 3 | . . . . 1 . 2 . Trap . | . . . . . . . . Miscellaneous 4 | . 4 . . . . . . Route ------- -11/Scrapyard -10/Materials -9/Materials -8/Materials -7/Factory -7/Waste -7/Factory -7/Garrison History --------- Turn | Location | Event 3 | -11/Scrapyard | Discovered new exit (range 15) 17 | -11/Scrapyard | Entered Materials 133 | -10/Materials | Core integrity fell below 50% 159 | -10/Materials | Discovered new exit (range 15) 174 | -10/Materials | Lost 6 parts (1p2n2u1w) 176 | -10/Materials | Entered another Materials area 396 | -9/Materials | Core integrity fell below 50% 399 | -9/Materials | Discovered new exit (range 3) 400 | -9/Materials | Entered another Materials area 424 | -8/Materials | Lost 5 parts (1p2n1u1w) 754 | -8/Materials | Core integrity fell below 50% 773 | -8/Materials | Lost 3 parts (1p1n1w) 1942 | -8/Materials | Discovered new exit (range 14) 1963 | -8/Materials | Entered Factory 2048 | -7/Factory | Sucked down chute 2048 | -7/Factory | Entered Waste 2049 | -7/Waste | Met a frightened Derelict 2049 | -7/Waste | Lost 8 parts (1p2n3u2w) 2054 | -7/Waste | Spotted C-40 Crusher 2089 | -7/Waste | Spotted C-40 Crusher 2093 | -7/Waste | Spotted C-40 Crusher 2104 | -7/Waste | Spotted C-40 Crusher 2104 | -7/Waste | Spotted C-40 Crusher 2110 | -7/Waste | Discovered new exit (range 16) 2111 | -7/Waste | Spotted C-40 Crusher 2115 | -7/Waste | Entered Factory 2282 | -7/Factory | Core integrity fell below 50% 2333 | -7/Factory | Core integrity fell below 20% 2347 | -7/Factory | Identified exit to Garrison 2347 | -7/Factory | Entered Garrison 2393 | -7/Garrison | Triggered checkpoint 2411 | -7/Garrison | Triggered checkpoint 2429 | -7/Garrison | Destroyed by L-41 Fighter with Axe Last Messages --------------- 02197_ K-01 Serf collects debris. 02300_ O-16 Technician: "IFF HANDSHAKE FAILED. SECURING TERMINAL." 02315_ ALERT: Hostiles spotted, dispatching reinforcements to Terminal F009. 02327_ Penetrated by Slug. 02330_ Critical hit (Burn: +37). 02335_ Took control of H-55 Commando. 02335_ Extracted analysis data for H-55 Commando. 02347_ Connecting with Garrison Access... >>Unlock Access door unlocked. 02347_ EXIT=UNLOCKED: GARRISON LOCATION=GARRISON GOAL=ESCAPE 02411_ Beams of light sweep through the air. An alarm sounds. 02424_ Slug penetrates L-41 Fighter. 02427_ Lgt. Nuclear Core severed. Map ----- +----------------------------------------------------+ | ?????????????????????????????????????????????????? | | ?????????????????????????????????????????????????? | | ?????????????????????????????????????????????????? | | ?????????????????????????????????????????????????? | | ?????????????????????????????????????????????????? | | ?????????????????????????????????????????????????? | | ?????????????????????????????????????????????????? | | ?????????????????????????????????????????????????? | | ?????????????????????????????????????????????????? | | ?????????????????????????????????????????????????? | | ?????????????????????????????????????????????????? | | ?????????????????????????????????????????????????? | | ?????????????????????????????????????????????????? | | ?????????????????????????????????????????????????? | | ?????????????????????????????????????????????????? | | ?????????????????????????????????????????????????? | | ?????????????????????????????????????????????????? | | ??????????????????????????######?????????????????? | | ??????????????????????????? #?????????????????? | | ??????????????????????????? #?????????????????? | | ??????????????????????????? #?????????????????? | | ???????????????????????????# #?????????????????? | | ???????????????????????????# #?????????????????? | | ???????????????????????????# #?????????????????? | | ????????????????????# ######gg #?????????????????? | | ????????????????????# hl #?????????????????? | | ????????????????????########Yg #?????????????????? | | ???????????????????????????# #?????????????????? | | ???????????????????????????# #?????????????????? | | ???????????????????????????# #????????? #??????? | | ???????????????????????????# #?????#? #??????? | | ???????????????????????????# ## ## #??????? | | ???????????????????????????# #??????? | | ???????????????????????????+ #??????? | | ??????????????????????????## #??????? | | ???????????????????????????# ## ## #??????? | | ???????????????????????????#^ ## ## #??????? | | ???????????????????????????" "??????? | | ???????????????????????????" "??????? | | ???????????????????????????" "??????? | | ???????????????????????????" "??????? | | ???????????????????????????# ## ## #??????? | | ???????????????????????????# ## ## ###????? | | ???????????????????????????# ???? | | ???????????????????????????# ???? | | ???????????????????????????# ???? | | ???????????????????????????## ## ########????? | | ????????????????????????????# #? #???????????? | | ????????????????????????????# #??####???????????? | | ????????????????????????????# #?????????????????? | +----------------------------------------------------+ Best States ------------- Heat Dissipation 43 Energy Generation 19 Energy Capacity 215 Matter Stores 179 Matter Capacity 200 Sight Range 16 Terrain Scan Range 16 Terrain Scan Density 10 Armor Coverage 150 Resistance: KI 25 Resistance: EX 50 Resistance: I 25 Evasion (%) 63 Targeting Accuracy 5 Recoil Reduction 2 Item Schematics ----------------- None Robot Schematics ------------------ None Fabricated ------------ Nothing Alien Tech Used ----------------- None Achievements -------------- None Challenges ------------ None Polymind | -11 -10 -9 -8 -7 -7 -7 -7 ---------- Run | Yrd Mat Mat Mat Fac Was Fac Gar Hosts 7 | 1 1 . 2 1 . 2 . Combat Hostiles 5 | . 1 . 2 1 . 1 . Allies . | . . . . . . . . Unique Host Classes 6 | 1 1 . 1 1 . 2 . Average Host Suspicion 60 | 1 70 90 58 56 4 67 39 Unsuspicious Activity 1240 | 2 35 . 1053 . 150 . . Returns to Shadow 2 | . . . 2 . . . . Fuzzy Dispatches . | . . . . . . . . Protomatter Created 155 | . 13 107 24 . . 11 . Used 143 | 5 30 . 53 14 . 41 . Decayed 51 | . . 51 . . . . . Highest Spend 34 | 5 30 . 30 14 . 34 . Top 5 Hosts by Kills: G-47 Trooper (-10/Materials: 8) Y-45 Defender (-8/Materials: 5) G-47 Trooper (-8/Materials: 4) M-28 Smith (-7/Factory: 1) Game ------ Seed DispersionConcussiveStripper Manual? 0 Play Time 00:11:37 Cumulative 121.2 hours Start 2025.01.03 @ 18:40:26 End 2025.01.03 @ 18:51:45 Sessions 1 Manual Loads 0 Difficulty Rogue Special Mode Winter2022/Polymind Game No. 147 Rogue 147 Adventurer 0 Explorer 0 Win Type - Total 1 Types 1/0/0/0/0/0/0/0/0 Lore% 52 Gallery% 67 Achievement% 53 Wizard Run 0 Options --------- Layout 1 ASCII 0 Keyboard 0 Movement Numpad Keybinds 0 Fullscreen 1 Font 24/Smallcaps Map View 50x35 Zoom Use 0% Tactical HUD 1 Map Filters NONE Filters NONE Steam 1 RUN: c13d4bdb-5d97-4c5c-85f5-06da7fd4dc88